[Event "*** SCC Grand Prix: Titled Tuesday Blitz"]
[Site "Chess.com"]
[Date "2020.06.23"]
[Round "8"]
[White "sergeikim"]
[Black "IsaacWiebe"]
[Result "1/2-1/2"]
[WhiteElo "2493"]
[BlackElo "2110"]
[TimeControl "180+1"]
[EndTime "11:37:00 PDT"]
[Termination "Game drawn - insufficient material"]

1. d4 {[%clk 0:03:00.9]} 1... d5 {[%clk 0:02:54.4]} 2. c4 {[%clk 0:03:00.5]}
2... dxc4 {[%clk 0:02:54.9]} 3. e3 {[%clk 0:03:00]} 3... e5 {[%clk 0:02:53.7]}
4. Bxc4 {[%clk 0:02:59.7]} 4... Nc6 {[%clk 0:02:53.2]} 5. Nf3 {[%clk 0:02:54.5]}
5... exd4 {[%clk 0:02:52.9]} 6. exd4 {[%clk 0:02:54.3]} 6... Bb4+ {[%clk
0:02:49.4]} 7. Nc3 {[%clk 0:02:52.7]} 7... Nf6 {[%clk 0:02:49]} 8. O-O {[%clk
0:02:50.6]} 8... O-O {[%clk 0:02:49.1]} 9. h3 {[%clk 0:02:50.3]} 9... Bf5 {[%clk
0:02:47.8]} 10. Bg5 {[%clk 0:02:48.6]} 10... Be7 {[%clk 0:02:45.9]} 11. Re1
{[%clk 0:02:40.5]} 11... Re8 {[%clk 0:02:44.6]} 12. a3 {[%clk 0:02:20.7]} 12...
h6 {[%clk 0:02:40.7]} 13. Bh4 {[%clk 0:02:18.6]} 13... Bg6 {[%clk 0:02:38.3]}
14. d5 {[%clk 0:02:08.6]} 14... Nb8 {[%clk 0:02:22]} 15. Ne5 {[%clk 0:02:01.7]}
15... Bd6 {[%clk 0:02:16.8]} 16. Nxg6 {[%clk 0:01:44.1]} 16... fxg6 {[%clk
0:02:17.7]} 17. Bd3 {[%clk 0:01:43.1]} 17... g5 {[%clk 0:02:16.2]} 18. Bg3
{[%clk 0:01:42.2]} 18... Bxg3 {[%clk 0:02:15.4]} 19. fxg3 {[%clk 0:01:43.1]}
19... Nbd7 {[%clk 0:02:11]} 20. Bf5 {[%clk 0:01:42]} 20... Nb6 {[%clk
0:02:08.3]} 21. Be6+ {[%clk 0:01:39.4]} 21... Kh8 {[%clk 0:02:08.2]} 22. Qd3
{[%clk 0:01:34.7]} 22... c6 {[%clk 0:01:58.9]} 23. d6 {[%clk 0:01:30.7]} 23...
Nbd5 {[%clk 0:01:50.3]} 24. Nxd5 {[%clk 0:01:29.2]} 24... Qxd6 {[%clk
0:01:40.7]} 25. Bf7 {[%clk 0:01:24.6]} 25... Rxe1+ {[%clk 0:01:34.7]} 26. Rxe1
{[%clk 0:01:24.9]} 26... Nxd5 {[%clk 0:01:34.8]} 27. Kh2 {[%clk 0:01:17.5]}
27... Rf8 {[%clk 0:01:31.5]} 28. Bg6 {[%clk 0:01:12.9]} 28... Qf6 {[%clk
0:01:19.3]} 29. Be4 {[%clk 0:01:06.9]} 29... Nb6 {[%clk 0:01:03.9]} 30. b3
{[%clk 0:00:59.8]} 30... Rd8 {[%clk 0:00:59]} 31. Qc2 {[%clk 0:00:57]} 31... Qd4
{[%clk 0:00:54.1]} 32. Bg6 {[%clk 0:00:47.9]} 32... Qf6 {[%clk 0:00:44.6]} 33.
a4 {[%clk 0:00:44.3]} 33... Nd5 {[%clk 0:00:43.4]} 34. Bh5 {[%clk 0:00:35.1]}
34... Qc3 {[%clk 0:00:38.3]} 35. Qxc3 {[%clk 0:00:32.6]} 35... Nxc3 {[%clk
0:00:38.4]} 36. Re7 {[%clk 0:00:33]} 36... Rb8 {[%clk 0:00:37.9]} 37. Bg6 {[%clk
0:00:31]} 37... Nd5 {[%clk 0:00:37.6]} 38. Rd7 {[%clk 0:00:30.2]} 38... Nf6
{[%clk 0:00:30.7]} 39. Rf7 {[%clk 0:00:29.2]} 39... Nd5 {[%clk 0:00:31]} 40. h4
{[%clk 0:00:27.5]} 40... gxh4 {[%clk 0:00:31.1]} 41. gxh4 {[%clk 0:00:27.7]}
41... a5 {[%clk 0:00:28.5]} 42. Kh3 {[%clk 0:00:26.3]} 42... b5 {[%clk
0:00:22.2]} 43. g3 {[%clk 0:00:23.7]} 43... Nf6 {[%clk 0:00:17.6]} 44. Rc7
{[%clk 0:00:21.6]} 44... bxa4 {[%clk 0:00:10.3]} 45. bxa4 {[%clk 0:00:21.6]}
45... Kg8 {[%clk 0:00:09.7]} 46. Rxc6 {[%clk 0:00:21.1]} 46... Kf8 {[%clk
0:00:08.7]} 47. Ra6 {[%clk 0:00:20.4]} 47... Rb3 {[%clk 0:00:04.6]} 48. Rxa5
{[%clk 0:00:19.9]} 48... Ke7 {[%clk 0:00:04.5]} 49. Ra7+ {[%clk 0:00:19.6]}
49... Kf8 {[%clk 0:00:04.6]} 50. a5 {[%clk 0:00:19.2]} 50... Ra3 {[%clk
0:00:04.4]} 51. a6 {[%clk 0:00:18.9]} 51... Nd5 {[%clk 0:00:04.5]} 52. Be4
{[%clk 0:00:16.7]} 52... Nf6 {[%clk 0:00:03.9]} 53. Bc6 {[%clk 0:00:16.2]} 53...
Nh5 {[%clk 0:00:01.9]} 54. Kg4 {[%clk 0:00:14.7]} 54... Nxg3 {[%clk 0:00:01.7]}
55. Ra8+ {[%clk 0:00:14.7]} 55... Ke7 {[%clk 0:00:01.5]} 56. a7 {[%clk
0:00:12.2]} 56... h5+ {[%clk 0:00:01.9]} 57. Kg5 {[%clk 0:00:11.3]} 57... Kf7
{[%clk 0:00:02.4]} 58. Bd5+ {[%clk 0:00:08.9]} 58... Ke7 {[%clk 0:00:02.8]} 59.
Rg8 {[%clk 0:00:08.2]} 59... Rxa7 {[%clk 0:00:02.2]} 60. Rxg7+ {[%clk
0:00:08.3]} 60... Kd6 {[%clk 0:00:03.1]} 61. Rxa7 {[%clk 0:00:08.5]} 61... Kxd5
{[%clk 0:00:04]} 62. Rh7 {[%clk 0:00:07.8]} 62... Ke5 {[%clk 0:00:04.2]} 63. Rf7
{[%clk 0:00:07.4]} 63... Ke6 {[%clk 0:00:04.4]} 64. Rf3 {[%clk 0:00:06.8]} 64...
Ne4+ {[%clk 0:00:04.7]} 65. Kxh5 {[%clk 0:00:06.8]} 65... Nf6+ {[%clk
0:00:04.6]} 66. Kg6 {[%clk 0:00:06.8]} 66... Ng4 {[%clk 0:00:04.9]} 67. h5
{[%clk 0:00:06.9]} 67... Ne5+ {[%clk 0:00:05.2]} 68. Kg7 {[%clk 0:00:07.1]}
68... Nxf3 {[%clk 0:00:06.1]} 69. h6 {[%clk 0:00:07.3]} 69... Ng5 {[%clk
0:00:06]} 70. Kg6 {[%clk 0:00:07.7]} 70... Nf7 {[%clk 0:00:05]} 71. h7 {[%clk
0:00:07.8]} 71... Ke7 {[%clk 0:00:04.7]} 72. Kg7 {[%clk 0:00:07.8]} 72... Ke8
{[%clk 0:00:04.9]} 73. Kg8 {[%clk 0:00:07.8]} 73... Ke7 {[%clk 0:00:05.2]} 74.
Kg7 {[%clk 0:00:07.6]} 74... Ke8 {[%clk 0:00:05.5]} 75. h8=Q+ {[%clk 0:00:07.7]}
75... Nxh8 {[%clk 0:00:05.4]} 1/2-1/2

[Event "*** SCC Grand Prix: Titled Tuesday Blitz"]
[Site "Chess.com"]
[Date "2020.06.23"]
[Round "8"]
[White "WIDBIFS"]
[Black "Lupul_Cenusiu"]
[Result "1/2-1/2"]
[WhiteElo "2708"]
[BlackElo "2573"]
[TimeControl "180+1"]
[EndTime "11:37:06 PDT"]
[Termination "Game drawn by repetition"]

1. d4 {[%clk 0:03:00.9]} 1... Nf6 {[%clk 0:02:58.9]} 2. Nf3 {[%clk 0:03:01.2]}
2... e6 {[%clk 0:02:59]} 3. Bf4 {[%clk 0:03:01.4]} 3... d6 {[%clk 0:02:57]} 4.
e3 {[%clk 0:03:01.4]} 4... g6 {[%clk 0:02:56.4]} 5. h3 {[%clk 0:03:01.5]} 5...
Bg7 {[%clk 0:02:56.4]} 6. Nbd2 {[%clk 0:03:02]} 6... O-O {[%clk 0:02:55]} 7. Bc4
{[%clk 0:03:02.5]} 7... a6 {[%clk 0:02:54.6]} 8. a4 {[%clk 0:03:01.6]} 8... b6
{[%clk 0:02:54.9]} 9. O-O {[%clk 0:03:01.3]} 9... Bb7 {[%clk 0:02:55.2]} 10. Qe2
{[%clk 0:02:59.7]} 10... Ne4 {[%clk 0:02:53.7]} 11. Bh2 {[%clk 0:02:57.9]} 11...
Re8 {[%clk 0:02:50.7]} 12. c3 {[%clk 0:02:53.7]} 12... Qc8 {[%clk 0:02:47.4]}
13. Nxe4 {[%clk 0:02:43.4]} 13... Bxe4 {[%clk 0:02:46]} 14. Nd2 {[%clk
0:02:43.4]} 14... Bb7 {[%clk 0:02:45.5]} 15. e4 {[%clk 0:02:35.1]} 15... d5
{[%clk 0:02:44.7]} 16. Bd3 {[%clk 0:02:31.3]} 16... c5 {[%clk 0:02:38.9]} 17.
dxc5 {[%clk 0:02:25]} 17... bxc5 {[%clk 0:02:33.9]} 18. Rfe1 {[%clk 0:02:16.9]}
18... Nc6 {[%clk 0:02:25.5]} 19. exd5 {[%clk 0:01:49.6]} 19... exd5 {[%clk
0:02:24.4]} 20. Qf3 {[%clk 0:01:49.1]} 20... Qd7 {[%clk 0:02:21.4]} 21. Bf4
{[%clk 0:01:39]} 21... c4 {[%clk 0:02:13.2]} 22. Bc2 {[%clk 0:01:33.3]} 22...
Ne5 {[%clk 0:01:53.4]} 23. Qg3 {[%clk 0:01:29.5]} 23... f6 {[%clk 0:01:43.7]}
24. Rad1 {[%clk 0:01:23.5]} 24... Qf7 {[%clk 0:01:36.7]} 25. Be3 {[%clk
0:00:54.1]} 25... f5 {[%clk 0:01:25.3]} 26. Bf4 {[%clk 0:00:48.4]} 26... Nd7
{[%clk 0:01:12.8]} 27. Nf3 {[%clk 0:00:46.3]} 27... Nc5 {[%clk 0:01:10]} 28. Be5
{[%clk 0:00:43.4]} 28... Ne4 {[%clk 0:01:07.4]} 29. Bxe4 {[%clk 0:00:43.4]}
29... dxe4 {[%clk 0:00:57.6]} 30. Bxg7 {[%clk 0:00:43.8]} 30... exf3 {[%clk
0:00:48.5]} 31. Be5 {[%clk 0:00:30.5]} 31... fxg2 {[%clk 0:00:47.8]} 32. f4
{[%clk 0:00:30.8]} 32... Rad8 {[%clk 0:00:43.5]} 33. Qh4 {[%clk 0:00:27.6]}
33... Rxd1 {[%clk 0:00:37.5]} 34. Rxd1 {[%clk 0:00:28.5]} 34... Qe7 {[%clk
0:00:36.7]} 35. Qf2 {[%clk 0:00:26.8]} 35... Be4 {[%clk 0:00:34.6]} 36. Rd6
{[%clk 0:00:19.8]} 36... Qf7 {[%clk 0:00:19.8]} 37. Qd4 {[%clk 0:00:19.6]} 37...
Re6 {[%clk 0:00:19.7]} 38. Rd8+ {[%clk 0:00:13.9]} 38... Re8 {[%clk 0:00:19.4]}
39. Rd7 {[%clk 0:00:14.8]} 39... Re7 {[%clk 0:00:19.5]} 40. Rd8+ {[%clk
0:00:13.1]} 40... Re8 {[%clk 0:00:19.2]} 41. Rd7 {[%clk 0:00:11.9]} 41... Re7
{[%clk 0:00:19]} 42. Rd6 {[%clk 0:00:12.8]} 42... Re6 {[%clk 0:00:18.7]} 43. a5
{[%clk 0:00:09.3]} 43... Rxd6 {[%clk 0:00:18.3]} 44. Qxd6 {[%clk 0:00:10.2]}
44... Qb7 {[%clk 0:00:17]} 45. Qf6 {[%clk 0:00:07.7]} 45... Bf3 {[%clk 0:00:13]}
46. Qh8+ {[%clk 0:00:07]} 46... Kf7 {[%clk 0:00:13]} 47. Qxh7+ {[%clk
0:00:06.5]} 47... Kf8 {[%clk 0:00:12.6]} 48. Qh8+ {[%clk 0:00:05.4]} 48... Kf7
{[%clk 0:00:12.6]} 49. Qg7+ {[%clk 0:00:06.3]} 49... Ke8 {[%clk 0:00:12.7]} 50.
Qxg6+ {[%clk 0:00:07.2]} 50... Qf7 {[%clk 0:00:11.7]} 51. Qxa6 {[%clk
0:00:07.3]} 51... Qd7 {[%clk 0:00:11.4]} 52. Qg6+ {[%clk 0:00:06.8]} 52... Qf7
{[%clk 0:00:11.3]} 53. Qxf7+ {[%clk 0:00:06.3]} 53... Kxf7 {[%clk 0:00:10.5]}
54. a6 {[%clk 0:00:07.2]} 54... Kg6 {[%clk 0:00:08.8]} 55. a7 {[%clk 0:00:07.4]}
55... Kh5 {[%clk 0:00:08.8]} 56. b3 {[%clk 0:00:03.5]} 56... cxb3 {[%clk
0:00:07.5]} 57. c4 {[%clk 0:00:04]} 57... Bc6 {[%clk 0:00:07.3]} 58. Kh2 {[%clk
0:00:03.4]} 58... Kh4 {[%clk 0:00:07.1]} 59. Bb2 {[%clk 0:00:02.8]} 59... Kh5
{[%clk 0:00:07.2]} 60. Bf6 {[%clk 0:00:03.4]} 60... Kg6 {[%clk 0:00:06.8]} 61.
Bd4 {[%clk 0:00:04]} 61... Kh5 {[%clk 0:00:07]} 62. Bb2 {[%clk 0:00:04.3]} 62...
Kh4 {[%clk 0:00:07.1]} 63. Bf6+ {[%clk 0:00:04.2]} 63... Kh5 {[%clk 0:00:07.4]}
64. Bd4 {[%clk 0:00:05.1]} 64... Kh4 {[%clk 0:00:07]} 65. Bf2+ {[%clk 0:00:05]}
65... Kh5 {[%clk 0:00:07]} 66. Bd4 {[%clk 0:00:05.9]} 66... Kh4 {[%clk
0:00:07.1]} 67. Bc3 {[%clk 0:00:06.4]} 67... Kh5 {[%clk 0:00:06.9]} 68. Kg1
{[%clk 0:00:06.5]} 68... Kh4 {[%clk 0:00:06.9]} 69. a8=Q {[%clk 0:00:07.1]}
69... Bxa8 {[%clk 0:00:05.3]} 70. Kh2 {[%clk 0:00:07.6]} 70... Kh5 {[%clk
0:00:05.8]} 71. Bb2 {[%clk 0:00:07.9]} 71... Bc6 {[%clk 0:00:06.4]} 72. Bc3
{[%clk 0:00:08.3]} 72... Bb7 {[%clk 0:00:06.9]} 73. Bb2 {[%clk 0:00:07.4]} 73...
Bc6 {[%clk 0:00:07.8]} 74. Bc3 {[%clk 0:00:07.9]} 74... Bb7 {[%clk 0:00:07.9]}
75. Bb2 {[%clk 0:00:08.3]} 75... Bc6 {[%clk 0:00:08.8]} 1/2-1/2

[Event "*** SCC Grand Prix: Titled Tuesday Blitz"]
[Site "Chess.com"]
[Date "2020.06.23"]
[Round "8"]
[White "goldaxe"]
[Black "Gerodot71"]
[Result "0-1"]
[WhiteElo "2296"]
[BlackElo "2421"]
[TimeControl "180+1"]
[EndTime "11:37:06 PDT"]
[Termination "Gerodot71 won by resignation"]

1. e4 {[%clk 0:03:00]} 1... e5 {[%clk 0:02:59.6]} 2. Nf3 {[%clk 0:03:00.2]} 2...
Nc6 {[%clk 0:02:59.4]} 3. Bb5 {[%clk 0:03:00.6]} 3... a6 {[%clk 0:02:59.2]} 4.
Ba4 {[%clk 0:03:01.1]} 4... Nf6 {[%clk 0:02:59]} 5. O-O {[%clk 0:03:01.6]} 5...
Be7 {[%clk 0:02:58.8]} 6. Re1 {[%clk 0:03:01.8]} 6... b5 {[%clk 0:02:58.9]} 7.
Bb3 {[%clk 0:03:02.5]} 7... d6 {[%clk 0:02:59.3]} 8. c3 {[%clk 0:03:02.6]} 8...
O-O {[%clk 0:02:58.8]} 9. h3 {[%clk 0:03:02.3]} 9... Nb8 {[%clk 0:02:58.3]} 10.
d4 {[%clk 0:03:02.3]} 10... Nbd7 {[%clk 0:02:58.2]} 11. Nbd2 {[%clk 0:03:02.6]}
11... Bb7 {[%clk 0:02:57.6]} 12. Bc2 {[%clk 0:03:02.6]} 12... Re8 {[%clk
0:02:57.4]} 13. Nf1 {[%clk 0:03:02.4]} 13... Bf8 {[%clk 0:02:57.4]} 14. Ng3
{[%clk 0:03:03]} 14... g6 {[%clk 0:02:57.1]} 15. Bg5 {[%clk 0:03:00.6]} 15... h6
{[%clk 0:02:56.8]} 16. Bd2 {[%clk 0:02:59.6]} 16... Bg7 {[%clk 0:02:55.9]} 17.
a4 {[%clk 0:02:48.5]} 17... Kh7 {[%clk 0:02:31.9]} 18. Qb1 {[%clk 0:02:31.5]}
18... c5 {[%clk 0:02:28.4]} 19. d5 {[%clk 0:02:27.2]} 19... c4 {[%clk
0:02:26.7]} 20. a5 {[%clk 0:02:22.5]} 20... Nc5 {[%clk 0:02:20.8]} 21. Be3
{[%clk 0:02:10.5]} 21... Nfd7 {[%clk 0:02:15.3]} 22. Qd1 {[%clk 0:02:07.9]}
22... Bc8 {[%clk 0:02:12.6]} 23. Nh2 {[%clk 0:02:01.8]} 23... Nb7 {[%clk
0:02:08.3]} 24. f4 {[%clk 0:01:48.1]} 24... Nxa5 {[%clk 0:02:00.4]} 25. f5
{[%clk 0:01:45.9]} 25... Nb7 {[%clk 0:01:52.5]} 26. Rf1 {[%clk 0:01:42.9]} 26...
g5 {[%clk 0:01:43.2]} 27. Qh5 {[%clk 0:01:33.8]} 27... Kg8 {[%clk 0:01:41.2]}
28. Ng4 {[%clk 0:01:31.9]} 28... f6 {[%clk 0:01:16.7]} 29. Nxh6+ {[%clk
0:01:26.7]} 29... Bxh6 {[%clk 0:01:17.6]} 30. Qxh6 {[%clk 0:01:27.6]} 30... Re7
{[%clk 0:01:12.9]} 31. Nh5 {[%clk 0:01:09.6]} 31... Rf7 {[%clk 0:01:10.6]} 32.
Qg6+ {[%clk 0:01:04.1]} 32... Kf8 {[%clk 0:01:10.6]} 33. h4 {[%clk 0:01:01.6]}
33... gxh4 {[%clk 0:01:06.3]} 34. Bh6+ {[%clk 0:00:57.8]} 34... Ke7 {[%clk
0:01:06]} 35. Rf3 {[%clk 0:00:27.7]} 35... Nbc5 {[%clk 0:01:04.4]} 36. Rh3
{[%clk 0:00:22]} 36... Bb7 {[%clk 0:01:03.2]} 37. Rxh4 {[%clk 0:00:21.6]} 37...
Qg8 {[%clk 0:01:03]} 38. Rg4 {[%clk 0:00:18.7]} 38... Qh7 {[%clk 0:00:58.1]} 39.
Ng3 {[%clk 0:00:13.4]} 39... Rh8 {[%clk 0:00:56.6]} 40. Qxh7 {[%clk 0:00:12.1]}
40... Rfxh7 {[%clk 0:00:57.5]} 41. Be3 {[%clk 0:00:12.6]} 41... Ra8 {[%clk
0:00:57.1]} 42. Kf2 {[%clk 0:00:11.4]} 42... a5 {[%clk 0:00:56]} 43. Rh1 {[%clk
0:00:08.7]} 43... Rxh1 {[%clk 0:00:53.6]} 44. Nxh1 {[%clk 0:00:09.6]} 44... b4
{[%clk 0:00:53.8]} 45. Rg7+ {[%clk 0:00:09.4]} 45... Kd8 {[%clk 0:00:53.8]} 46.
Ng3 {[%clk 0:00:09.5]} 46... bxc3 {[%clk 0:00:51.1]} 47. bxc3 {[%clk 0:00:10.4]}
47... a4 {[%clk 0:00:51.7]} 48. Bb1 {[%clk 0:00:09.9]} 48... a3 {[%clk
0:00:51.5]} 49. Ba2 {[%clk 0:00:10.3]} 49... Rb8 {[%clk 0:00:46.8]} 50. Bc1
{[%clk 0:00:09.7]} 50... Bc8 {[%clk 0:00:44]} 51. Bxa3 {[%clk 0:00:08.8]} 51...
Ra8 {[%clk 0:00:44.1]} 52. Bxc5 {[%clk 0:00:08]} 52... Rxa2+ {[%clk 0:00:44.5]}
53. Kf3 {[%clk 0:00:08.2]} 53... Nxc5 {[%clk 0:00:44.9]} 54. Nh5 {[%clk
0:00:08.2]} 54... Nd7 {[%clk 0:00:44.5]} 55. Rg8+ {[%clk 0:00:07.6]} 55... Kc7
{[%clk 0:00:44.4]} 56. Ng7 {[%clk 0:00:08]} 56... Rc2 {[%clk 0:00:37.4]} 57.
Ne8+ {[%clk 0:00:08]} 57... Kb6 {[%clk 0:00:35]} 58. Nxd6 {[%clk 0:00:08.4]}
58... Rxc3+ {[%clk 0:00:35.3]} 59. Kg4 {[%clk 0:00:07.9]} 59... Ba6 {[%clk
0:00:35.1]} 60. Rg7 {[%clk 0:00:05.8]} 60... Nc5 {[%clk 0:00:32.4]} 61. Ne8
{[%clk 0:00:05]} 61... Nxe4 {[%clk 0:00:31.3]} 62. Nxf6 {[%clk 0:00:04.8]} 62...
Nxf6+ {[%clk 0:00:30.2]} 63. Kg5 {[%clk 0:00:03.3]} 63... Ne4+ {[%clk
0:00:29.6]} 64. Kh6 {[%clk 0:00:01.9]} 64... Rc1 {[%clk 0:00:24.1]} 65. f6
{[%clk 0:00:01.4]} 65... Nxf6 {[%clk 0:00:21.3]} 66. Rg6 {[%clk 0:00:01.6]}
66... Rf1 {[%clk 0:00:21.7]} 67. Kg7 {[%clk 0:00:01.7]} 67... c3 {[%clk
0:00:20.4]} 68. Rxf6+ {[%clk 0:00:02.1]} 68... Rxf6 {[%clk 0:00:21.3]} 69. Kxf6
{[%clk 0:00:03]} 69... c2 {[%clk 0:00:22.2]} 70. g4 {[%clk 0:00:03.2]} 70...
c1=Q {[%clk 0:00:22.6]} 71. g5 {[%clk 0:00:04.1]} 71... Qf4+ {[%clk 0:00:22.7]}
0-1

[Event "*** SCC Grand Prix: Titled Tuesday Blitz"]
[Site "Chess.com"]
[Date "2020.06.23"]
[Round "8"]
[White "MoreChessJulia"]
[Black "WiktoriaPOL"]
[Result "0-1"]
[WhiteElo "1751"]
[BlackElo "1939"]
[TimeControl "180+1"]
[EndTime "11:37:12 PDT"]
[Termination "WiktoriaPOL won on time"]

1. d4 {[%clk 0:02:59.5]} 1... Nf6 {[%clk 0:02:59.2]} 2. c4 {[%clk 0:02:59.3]}
2... g6 {[%clk 0:02:58.9]} 3. f3 {[%clk 0:02:59.1]} 3... Bg7 {[%clk 0:02:47.3]}
4. e4 {[%clk 0:02:58.4]} 4... d6 {[%clk 0:02:47.1]} 5. Nc3 {[%clk 0:02:58.2]}
5... O-O {[%clk 0:02:46.3]} 6. Bg5 {[%clk 0:02:58.6]} 6... c5 {[%clk 0:02:44]}
7. d5 {[%clk 0:02:58.7]} 7... e6 {[%clk 0:02:43.7]} 8. Qd2 {[%clk 0:02:57.6]}
8... exd5 {[%clk 0:02:32.5]} 9. cxd5 {[%clk 0:02:55.7]} 9... Qe8 {[%clk
0:02:20.6]} 10. Bh6 {[%clk 0:02:52.2]} 10... Bd7 {[%clk 0:02:10]} 11. h4 {[%clk
0:02:51.1]} 11... Qe7 {[%clk 0:02:05.6]} 12. Nge2 {[%clk 0:02:47.7]} 12... b5
{[%clk 0:01:59.9]} 13. g4 {[%clk 0:02:40.2]} 13... b4 {[%clk 0:01:56.4]} 14. Nd1
{[%clk 0:02:39.9]} 14... Bxg4 {[%clk 0:01:44]} 15. Bxg7 {[%clk 0:02:38.7]} 15...
Kxg7 {[%clk 0:01:43.5]} 16. fxg4 {[%clk 0:02:38.4]} 16... Qxe4 {[%clk
0:01:41.7]} 17. Rg1 {[%clk 0:02:33.7]} 17... Nxg4 {[%clk 0:01:37.4]} 18. Bg2
{[%clk 0:02:33.6]} 18... Qe5 {[%clk 0:01:32]} 19. Nf2 {[%clk 0:02:27.2]} 19...
Nxf2 {[%clk 0:01:27.4]} 20. Kxf2 {[%clk 0:02:26.8]} 20... Qf6+ {[%clk 0:01:23]}
21. Kg3 {[%clk 0:02:24]} 21... Re8 {[%clk 0:01:14.3]} 22. Bf3 {[%clk 0:02:19.3]}
22... h5 {[%clk 0:01:06.3]} 23. Rae1 {[%clk 0:02:03.2]} 23... Nd7 {[%clk
0:01:02.6]} 24. Qf4 {[%clk 0:01:58.4]} 24... Qxb2 {[%clk 0:00:58.5]} 25. Qxd6
{[%clk 0:01:57.5]} 25... Ne5 {[%clk 0:00:55]} 26. Qxc5 {[%clk 0:01:52.5]} 26...
Nd3 {[%clk 0:00:51.1]} 27. Rb1 {[%clk 0:01:39]} 27... Qxe2 {[%clk 0:00:36.3]}
28. Qd4+ {[%clk 0:01:30]} 28... Qe5+ {[%clk 0:00:35.4]} 29. Qxe5+ {[%clk
0:01:28]} 29... Rxe5 {[%clk 0:00:29.3]} 30. Rgd1 {[%clk 0:01:23]} 30... Nc5
{[%clk 0:00:19.7]} 31. Rxb4 {[%clk 0:01:20.4]} 31... Rd8 {[%clk 0:00:18.1]} 32.
Rc4 {[%clk 0:01:12.2]} 32... Nb7 {[%clk 0:00:13.3]} 33. Rc7 {[%clk 0:01:11.3]}
33... Nd6 {[%clk 0:00:12.5]} 34. Rxa7 {[%clk 0:01:10.6]} 34... Nf5+ {[%clk
0:00:10.9]} 35. Kf2 {[%clk 0:01:07.5]} 35... Nxh4 {[%clk 0:00:09.7]} 36. Rd3
{[%clk 0:01:01.2]} 36... Nxf3 {[%clk 0:00:09]} 37. Rxf3 {[%clk 0:01:00.7]} 37...
Rf5 {[%clk 0:00:04.9]} 38. Rxf5 {[%clk 0:00:59.9]} 38... gxf5 {[%clk 0:00:05.8]}
39. Ra5 {[%clk 0:00:59.5]} 39... Kf6 {[%clk 0:00:05.8]} 40. Kf3 {[%clk
0:00:59.1]} 40... Ke5 {[%clk 0:00:06]} 41. d6+ {[%clk 0:00:56.8]} 41... Ke6
{[%clk 0:00:04]} 42. d7 {[%clk 0:00:49]} 42... Rxd7 {[%clk 0:00:03.6]} 43. Ra6+
{[%clk 0:00:48.8]} 43... Rd6 {[%clk 0:00:03.6]} 44. Ra7 {[%clk 0:00:48.1]} 44...
Rd7 {[%clk 0:00:03.4]} 45. Ra6+ {[%clk 0:00:47.6]} 45... Rd6 {[%clk 0:00:03.8]}
46. Ra7 {[%clk 0:00:47.3]} 46... Rd3+ {[%clk 0:00:03.9]} 47. Kf4 {[%clk
0:00:45.5]} 47... f6 {[%clk 0:00:03.7]} 48. Ra6+ {[%clk 0:00:43.9]} 48... Rd6
{[%clk 0:00:03.7]} 49. Ra5 {[%clk 0:00:43.1]} 49... Rd5 {[%clk 0:00:03.5]} 50.
Ra6+ {[%clk 0:00:42.7]} 50... Rd6 {[%clk 0:00:03.8]} 51. Ra8 {[%clk 0:00:41.7]}
51... Rd4+ {[%clk 0:00:03.8]} 52. Kf3 {[%clk 0:00:41.2]} 52... h4 {[%clk
0:00:04.1]} 53. a4 {[%clk 0:00:34]} 53... Rd3+ {[%clk 0:00:04.3]} 54. Kf2 {[%clk
0:00:32.9]} 54... f4 {[%clk 0:00:04.2]} 55. Rh8 {[%clk 0:00:28]} 55... h3 {[%clk
0:00:03.4]} 56. a5 {[%clk 0:00:26.7]} 56... Ra3 {[%clk 0:00:02.7]} 57. a6 {[%clk
0:00:24.5]} 57... Rxa6 {[%clk 0:00:02.2]} 58. Rxh3 {[%clk 0:00:23.8]} 58... Ra2+
{[%clk 0:00:02.3]} 59. Kf1 {[%clk 0:00:23.3]} 59... Ke5 {[%clk 0:00:02.7]} 60.
Rb3 {[%clk 0:00:22.3]} 60... Ke4 {[%clk 0:00:02.7]} 61. Ke1 {[%clk 0:00:20.5]}
61... f3 {[%clk 0:00:02.2]} 62. Kf1 {[%clk 0:00:17.6]} 62... Kf4 {[%clk
0:00:02.6]} 63. Rb6 {[%clk 0:00:13.3]} 63... Kg3 {[%clk 0:00:02.3]} 64. Rb1
{[%clk 0:00:05.7]} 64... f5 {[%clk 0:00:02.5]} 65. Rc1 {[%clk 0:00:04.6]} 65...
Rh2 {[%clk 0:00:02.5]} 66. Ke1 {[%clk 0:00:03]} 66... Rh1+ {[%clk 0:00:02]} 67.
Kd2 {[%clk 0:00:02.9]} 67... Rxc1 {[%clk 0:00:02.6]} 68. Kxc1 {[%clk 0:00:02.7]}
68... f2 {[%clk 0:00:03.5]} 0-1